bitfinex/quotes_BTCUSD_20230907
["timestamp","ask_amount","ask_price","bid_price","bid_amount"]
[1694060212211,0.001145,25869.0,25868.0,2.4906095]
[1694060217031,0.001145,25869.0,25868.0,2.5606095]
[1694060222161,0.001145,25869.0,25868.0,2.62924591]
[1694060246663,0.19225605,25869.0,25868.0,2.62924591]
[1694060252890,0.28503085,25869.0,25868.0,2.62924591]
[1694060253862,0.42419305,25869.0,25868.0,2.62924591]
[1694060254608,0.33141825,25869.0,25868.0,2.62924591]
[1694060255443,0.51718957,25869.0,25868.0,2.62924591]
[1694060255653,0.37802737,25869.0,25868.0,2.62924591]
[1694060256673,0.42361327,25869.0,25868.0,2.62924591]
[1694060258754,0.19225605,25869.0,25868.0,2.62924591]
[1694060260729,0.47106561,25869.0,25868.0,2.62924591]
[1694060262467,0.19225605,25869.0,25868.0,2.62924591]
[1694060283126,0.19225605,25869.0,25868.0,2.50874591]
[1694060286116,0.19225605,25869.0,25868.0,1.73558991]
[1694060286344,0.47106561,25869.0,25868.0,0.18927791]
[1694060286547,0.47106561,25869.0,25868.0,0.96243391]
[1694060289085,0.47106561,25869.0,25868.0,0.18927791]
[1694060289289,0.47106561,25869.0,25868.0,0.96243391]
[1694060289489,0.47106561,25869.0,25868.0,2.50874591]
[1694060290317,0.27995456,25869.0,25868.0,2.50874591]
[1694060290534,0.001145,25869.0,25868.0,2.50874591]
[1694060307221,0.58335699,25869.0,25868.0,0.96243391]
[1694060307444,0.58335699,25869.0,25868.0,0.16049429]
[1694060307647,3.22412114,25869.0,25868.0,0.15963641]
[1694060307821,3.32959343,25869.0,25868.0,0.15963641]
[1694060307992,3.7179787,25869.0,25868.0,0.15963641]
[1694060308198,3.7162987,25869.0,25868.0,0.15963641]
[1694060308399,3.7158787,25869.0,25868.0,0.081]
[1694060308606,3.8707387,25869.0,25868.0,0.083]
[1694060308860,3.8719987,25869.0,25868.0,0.15068558]
[1694060309060,3.8707587,25869.0,25868.0,0.13968558]
[1694060309305,3.8957987,25869.0,25868.0,0.14168558]
[1694060309449,3.8961587,25869.0,25868.0,0.14168558]
[1694060309661,3.8960987,25869.0,25868.0,0.14168558]
[1694060309853,3.8960987,25869.0,25868.0,0.074]
[1694060309854,3.8946587,25869.0,25868.0,0.074]
[1694060310138,3.58155482,25869.0,25868.0,0.074]
[1694060310315,3.58029482,25869.0,25868.0,0.074]
[1694060310517,3.57699482,25869.0,25868.0,0.074]
[1694060310729,3.57669482,25869.0,25868.0,0.074]
[1694060310929,3.57669482,25869.0,25868.0,0.14176866]
[1694060311127,3.57657482,25869.0,25868.0,0.14176866]
[1694060311360,3.57201482,25869.0,25868.0,0.14176866]
[1694060311549,3.56505482,25869.0,25868.0,0.14176866]
[1694060311754,3.56559482,25869.0,25868.0,0.14176866]
[1694060311959,3.56547482,25869.0,25868.0,0.14176866]
[1694060312300,3.56523482,25869.0,25868.0,0.14176866]
[1694060312693,3.56511482,25869.0,25868.0,0.14176866]
[1694060312828,3.56517482,25869.0,25868.0,0.14176866]
[1694060313416,3.56583482,25869.0,25868.0,0.14176866]
[1694060313629,3.56571482,25869.0,25868.0,0.14176866]
[1694060313840,3.56535482,25869.0,25868.0,0.14176866]
[1694060314049,3.56505482,25869.0,25868.0,0.14176866]
[1694060314230,3.56487482,25869.0,25868.0,0.14176866]
[1694060314439,3.56481482,25869.0,25868.0,0.14176866]
[1694060314643,3.56469482,25869.0,25868.0,0.14176866]
[1694060314847,3.56457482,25869.0,25868.0,0.14176866]
[1694060315055,3.56427482,25869.0,25868.0,0.14176866]
[1694060315471,3.56307482,25869.0,25868.0,0.14176866]
[1694060315674,3.56289482,25869.0,25868.0,0.14176866]
[1694060315879,3.56277482,25869.0,25868.0,0.14176866]
[1694060316085,3.56175482,25869.0,25868.0,0.14176866]
[1694060316294,3.56145482,25869.0,25868.0,0.14176866]
[1694060316505,3.56199482,25869.0,25868.0,0.14176866]
[1694060316865,3.56193482,25869.0,25868.0,0.14176866]
[1694060317067,3.56469482,25869.0,25868.0,0.14176866]
[1694060317268,3.56391482,25869.0,25868.0,0.14176866]
[1694060317475,3.56403482,25869.0,25868.0,0.14176866]
[1694060317697,3.56295482,25869.0,25868.0,0.14254839]
[1694060317911,3.56223482,25869.0,25868.0,0.14254839]
[1694060318135,3.56229482,25869.0,25868.0,0.14254839]
[1694060318338,3.56169482,25869.0,25868.0,0.14254839]
[1694060318596,3.57249482,25869.0,25868.0,0.14254839]
[1694060318773,3.57207482,25869.0,25868.0,0.14254839]
[1694060319086,3.57387482,25869.0,25868.0,0.14254839]
[1694060319307,3.57225482,25869.0,25868.0,0.14254839]
[1694060319513,3.57357482,25869.0,25868.0,0.14254839]
[1694060319731,3.57363482,25869.0,25868.0,0.14254839]
[1694060319907,3.57453482,25869.0,25868.0,0.14254839]
[1694060320129,3.57489482,25869.0,25868.0,0.14254839]
[1694060320331,3.57483482,25869.0,25868.0,0.14254839]
[1694060320535,3.57477482,25869.0,25868.0,0.14254839]
[1694060320737,3.57471482,25869.0,25868.0,0.14254839]
[1694060320939,3.57423482,25869.0,25868.0,0.14254839]
[1694060321255,3.57399482,25869.0,25868.0,0.14254839]
[1694060321477,3.57405482,25869.0,25868.0,0.14254839]
[1694060321688,3.57459482,25869.0,25868.0,0.14254839]
[1694060321890,3.57453482,25869.0,25868.0,0.14254839]
[1694060322097,3.57579482,25869.0,25868.0,0.14254839]
[1694060322307,3.57519482,25869.0,25868.0,0.14254839]
[1694060322504,3.57375482,25869.0,25868.0,0.14254839]
[1694060322807,3.57567482,25869.0,25868.0,0.14254839]
[1694060323008,3.57849482,25869.0,25868.0,0.14254839]
[1694060323208,3.58869482,25869.0,25868.0,0.14254839]
[1694060323414,3.59241482,25869.0,25868.0,0.14254839]
[1694060323616,3.59517482,25869.0,25868.0,0.07477973]
[1694060323815,3.59895482,25869.0,25868.0,0.074]
[1694060323970,3.59913482,25869.0,25868.0,0.074]
[1694060324177,3.59877482,25869.0,25868.0,0.074]
[1694060324376,3.59865482,25869.0,25868.0,0.074]
[1694060324647,3.59403482,25869.0,25868.0,0.074]
[1694060324891,3.59109482,25869.0,25868.0,0.074]
[1694060325143,3.59013482,25869.0,25868.0,0.074]
[1694060325389,3.59043482,25869.0,25868.0,0.074]
[1694060325630,3.59031482,25869.0,25868.0,0.074]
[1694060325841,3.59013482,25869.0,25868.0,0.074]
[1694060326083,3.58893482,25869.0,25868.0,0.074]
[1694060326310,3.57753482,25869.0,25868.0,0.074]
[1694060326532,3.57459482,25869.0,25868.0,0.14170445]
[1694060326742,3.57411482,25869.0,25868.0,0.074]
[1694060326943,3.57405482,25869.0,25868.0,0.074]
[1694060327082,3.57285482,25869.0,25868.0,0.074]
[1694060327285,3.57243482,25869.0,25868.0,0.14162331]
[1694060327485,3.57231482,25869.0,25868.0,0.14162331]
[1694060327690,3.57231482,25869.0,25868.0,0.14249703]
[1694060327897,3.57291482,25869.0,25868.0,0.14249703]
[1694060328097,3.57285482,25869.0,25868.0,0.14249703]
[1694060328491,3.57267482,25869.0,25868.0,0.14249703]
[1694060328715,3.57285482,25869.0,25868.0,0.14249703]
[1694060328931,3.57315482,25869.0,25868.0,0.14249703]
[1694060329194,3.57297482,25869.0,25868.0,0.14249703]
[1694060329400,3.57333482,25869.0,25868.0,0.14249703]
[1694060329753,3.57327482,25869.0,25868.0,0.14249703]
[1694060329949,3.57363482,25869.0,25868.0,0.14249703]
[1694060330150,3.56679482,25869.0,25868.0,0.14249703]
[1694060330385,3.56655482,25869.0,25868.0,0.14249703]
[1694060330586,3.49575482,25869.0,25868.0,0.14249703]
[1694060330788,3.30813379,25869.0,25868.0,0.14249703]
[1694060330968,1.76188179,25869.0,25868.0,0.14249703]
[1694060333213,1.58406179,25869.0,25868.0,0.14249703]
[1694060334582,2.35718779,25869.0,25868.0,0.14249703]
[1694060336564,1.58406179,25869.0,25868.0,0.14249703]
[1694060337000,2.35718779,25869.0,25868.0,0.14249703]
[1694060337210,1.58406179,25869.0,25868.0,0.14249703]
[1694060338127,2.35718779,25869.0,25868.0,0.14249703]
[1694060342530,2.74383306,25869.0,25868.0,0.14249703]
[1694060348620,2.35718779,25869.0,25868.0,0.14249703]
[1694060351257,3.13031379,25869.0,25868.0,0.14249703]
[1694060351372,3.44395767,25869.0,25868.0,0.14249703]
[1694060353458,3.13031379,25869.0,25868.0,0.14249703]
[1694060354692,3.4438544,25869.0,25868.0,0.14249703]
[1694060355062,3.83049967,25869.0,25868.0,0.14249703]
[1694060355251,3.4438544,25869.0,25868.0,0.14249703]
[1694060358308,3.5141144,25869.0,25868.0,0.14249703]
[1694060358590,3.5156144,25869.0,25868.0,0.14249703]
[1694060358800,3.5155544,25869.0,25868.0,0.14249703]
[1694060359009,3.5154344,25869.0,25868.0,0.14249703]
[1694060359211,3.5190344,25869.0,25868.0,0.14249703]
[1694060359421,3.91407967,25869.0,25868.0,0.14249703]
[1694060359630,3.91383967,25869.0,25868.0,0.07487372]
[1694060359805,3.91383967,25869.0,25868.0,0.074]
[1694060360005,3.91389967,25869.0,25868.0,0.074]
[1694060360143,3.91377967,25869.0,25868.0,0.074]
[1694060360636,3.71571543,25869.0,25868.0,0.074]
[1694060360846,3.73793543,25869.0,25868.0,0.074]
[1694060360995,3.94557076,25869.0,25868.0,0.074]
[1694060361200,3.94611076,25869.0,25868.0,0.074]
[1694060361398,3.94593076,25869.0,25868.0,0.074]
[1694060361627,3.94575076,25869.0,25868.0,0.074]
[1694060361808,3.94533076,25869.0,25868.0,0.074]
[1694060362006,3.94629076,25869.0,25868.0,0.074]
[1694060362210,3.94617076,25869.0,25868.0,0.074]
[1694060362420,3.94605076,25869.0,25868.0,0.074]
[1694060362618,3.63203015,25869.0,25868.0,0.074]
[1694060362820,3.63227015,25869.0,25868.0,0.074]
[1694060363057,3.94568111,25869.0,25868.0,0.074]
[1694060363259,3.94520206,25869.0,25868.0,0.074]
[1694060363461,3.94520206,25869.0,25868.0,0.14170667]
[1694060363799,3.94496206,25869.0,25868.0,0.14258039]
[1694060363907,0.9,25868.0,25857.0,0.773457]
[1694060364112,0.44559744,25858.0,25857.0,0.01295541]
[1694060364338,2.09085151,25858.0,25857.0,0.01295541]
[1694060364766,2.09085151,25858.0,25857.0,0.01376286]
[1694060364987,2.05405527,25858.0,25857.0,0.01576286]
[1694060365202,2.28608515,25858.0,25857.0,0.01576286]
[1694060365425,2.28608515,25858.0,25857.0,0.01376286]
[1694060365660,2.30308515,25858.0,25857.0,0.01376286]
[1694060365869,2.32508515,25858.0,25857.0,0.01576286]
[1694060366084,2.09305527,25858.0,25857.0,0.01576286]
[1694060367162,2.700367,25858.0,25857.0,0.01576286]
[1694060367947,2.76101549,25858.0,25857.0,0.01576286]
[1694060368359,2.94646086,25858.0,25857.0,0.01576286]
[1694060369215,2.71452498,25858.0,25857.0,0.01576286]
[1694060370253,2.85355701,25858.0,25857.0,0.07805604]
[1694060371117,2.66811164,25858.0,25857.0,0.07805604]
[1694060372147,2.7607705,25858.0,25857.0,0.07805604]
[1694060373162,2.62173847,25858.0,25857.0,0.07805604]
[1694060376285,2.52907961,25858.0,25857.0,0.07805604]
[1694060376915,0.60679376,25858.0,25857.0,0.07805604]
[1694060398027,0.60679376,25858.0,25857.0,0.064508]
[1694060398792,0.60679376,25858.0,25857.0,0.06429318]
[1694060400152,0.64359,25858.0,25857.0,0.06429318]
[1694060400369,3.21483055,25858.0,25857.0,0.06429318]
[1694060400510,3.99897582,25858.0,25857.0,0.06429318]
[1694060400720,3.99921582,25858.0,25857.0,0.002]
[1694060400976,0.02,25855.0,25852.0,0.00099369]
[1694060401175,0.1205,25853.0,25851.0,0.01582821]
[1694060401397,0.59980593,25852.0,25851.0,0.01582821]
[1694060401572,1.37343993,25852.0,25851.0,0.01582821]
[1694060401775,1.45833809,25852.0,25851.0,0.01582821]
[1694060401979,1.45833809,25852.0,25851.0,0.07490051]
[1694060402372,1.45833809,25852.0,25851.0,0.01582821]
[1694060402573,1.45833809,25852.0,25851.0,0.01782821]
[1694060402803,1.45833809,25852.0,25851.0,0.07481903]
[1694060403022,3.00560609,25852.0,25851.0,0.05899082]
[1694060403177,3.19439064,25852.0,25851.0,0.05899082]
[1694060403378,3.11826675,25852.0,25851.0,0.05899082]
[1694060403580,3.45038635,25852.0,25851.0,0.002]
[1694060403945,3.45038635,25852.0,25851.0,0.0610723]
[1694060404132,3.28906503,25852.0,25851.0,0.004]
[1694060404339,3.24275037,25852.0,25851.0,0.004]
[1694060404484,3.24275037,25852.0,25851.0,0.0630723]
[1694060404693,3.37148237,25852.0,25851.0,0.0630723]
[1694060405118,3.60313402,25852.0,25851.0,0.0630723]
[1694060405279,3.37148237,25852.0,25851.0,0.0630723]
[1694060405480,3.37148237,25852.0,25851.0,0.004]
[1694060406115,3.60313402,25852.0,25851.0,0.004]
[1694060406354,3.37148237,25852.0,25851.0,0.004]
[1694060406555,3.29501442,25852.0,25851.0,0.004]
[1694060406980,3.37089833,25852.0,25851.0,0.004]
[1694060407193,3.60254998,25852.0,25851.0,0.004]
[1694060407317,3.37089833,25852.0,25851.0,0.004]
[1694060407522,3.34689833,25852.0,25851.0,0.002]
[1694060407931,3.34689833,25852.0,25851.0,0.001]
[1694060408133,3.60254998,25852.0,25851.0,0.001]
[1694060408359,3.58639833,25852.0,25848.0,0.01582821]
[1694060408561,0.1205,25849.0,25848.0,0.01582821]
[1694060410378,0.1205,25849.0,25848.0,0.01682821]
[1694060410932,0.894224,25849.0,25848.0,0.01582821]
[1694060411114,0.942224,25849.0,25848.0,0.01682821]
[1694060411747,0.942224,25849.0,25848.0,0.23287192]
[1694060411952,1.32886927,25849.0,25848.0,0.23287192]
[1694060412162,3.20235586,25849.0,25848.0,0.01682821]
[1694060412620,3.20235586,25849.0,25848.0,0.001]
[1694060413020,3.29503252,25849.0,25848.0,0.001]
[1694060413455,3.20235586,25849.0,25848.0,0.001]
[1694060413845,3.20235586,25849.0,25847.0,0.01582821]
[1694060413846,3.17835586,25849.0,25847.0,0.01582821]
[1694060414067,0.89379054,25848.0,25847.0,0.01582821]
[1694060414286,3.21505254,25848.0,25846.0,0.01582821]
[1694060414492,3.21505254,25848.0,25845.0,0.01582821]
[1694060414493,0.1205,25847.0,25845.0,0.01582821]
[1694060414698,2.05477327,25846.0,25845.0,0.01582821]
[1694060414897,2.44141854,25846.0,25845.0,0.01582821]
[1694060416122,2.45741854,25846.0,25845.0,0.01582821]
[1694060416721,2.45741854,25846.0,25845.0,0.07494681]
[1694060416926,1.68360454,25846.0,25845.0,0.07494681]
[1694060417757,1.69860454,25846.0,25845.0,0.07494681]
[1694060418623,1.69860454,25846.0,25845.0,0.1556189]
[1694060426890,0.92479054,25846.0,25845.0,0.1556189]
[1694060428230,0.53814527,25846.0,25845.0,0.1556189]
[1694060428432,0.41764527,25846.0,25845.0,0.1556189]
[1694060430022,0.41764527,25846.0,25845.0,0.07494681]
[1694060430224,0.41764527,25846.0,25845.0,0.33246339]
[1694060430426,0.41764527,25846.0,25845.0,0.07494681]
[1694060430652,0.41764527,25846.0,25845.0,0.30810053]
[1694060437054,0.031,25846.0,25845.0,0.84879081]
[1694060437266,0.031,25846.0,25845.0,1.62263481]
[1694060442136,0.031,25846.0,25845.0,1.8183015]
[1694060442365,0.031,25846.0,25845.0,0.2706135]
[1694060448191,0.12367666,25846.0,25845.0,0.2706135]
[1694060450763,0.17001499,25846.0,25845.0,0.2706135]
[1694060452076,0.35535198,25846.0,25845.0,0.2706135]
[1694060452708,0.35565084,25846.0,25845.0,0.2706135]
[1694060453207,0.21633699,25846.0,25845.0,0.2706135]
[1694060454109,0.29577301,25846.0,25845.0,0.2706135]
[1694060455399,0.52742466,25846.0,25845.0,0.2706135]
[1694060456287,0.34208767,25846.0,25845.0,0.2706135]
[1694060463391,1.92047963,25846.0,25845.0,0.0591186]
[1694060463611,3.2014389,25846.0,25845.0,0.01582821]
[1694060463824,3.47930161,25846.0,25844.0,0.01582821]
[1694060464042,0.46608129,25845.0,25844.0,0.01582821]
[1694060464260,2.40041456,25845.0,25844.0,0.01582821]
[1694060464472,2.67827727,25845.0,25844.0,0.01582821]
[1694060464685,2.01376929,25845.0,25844.0,0.01582821]
[1694060464903,3.16018324,25845.0,25844.0,0.01582821]
[1694060465764,3.16614442,25845.0,25843.0,0.27482931]
[1694060466140,0.47862776,25844.0,25843.0,0.27482931]
[1694060466379,1.63914703,25844.0,25843.0,0.27482931]
[1694060466594,1.59681045,25844.0,25843.0,0.27482931]
[1694060467535,1.59681045,25844.0,25843.0,0.01582821]
[1694060467746,0.82393645,25844.0,25843.0,0.01582821]
[1694060468509,0.82493645,25844.0,25843.0,0.01682821]
[1694060468710,0.58858129,25844.0,25843.0,0.01682821]
[1694060472850,0.58858129,25844.0,25843.0,0.24265797]
[1694060474444,0.82066134,25844.0,25843.0,0.24265797]
[1694060474884,0.82066134,25844.0,25843.0,1.01656097]
[1694060475028,0.70016134,25844.0,25843.0,1.01656097]
[1694060475660,0.70016134,25844.0,25843.0,0.24265797]
[1694060475961,0.70016134,25844.0,25843.0,1.01656097]
[1694060476155,0.70016134,25844.0,25843.0,0.24265797]
[1694060477149,0.70016134,25844.0,25843.0,0.30863494]
[1694060479716,0.82066134,25844.0,25843.0,0.08280518]
[1694060481316,0.82066134,25844.0,25843.0,0.06697697]
[1694060481518,2.91020329,25844.0,25843.0,0.06697697]
[1694060481941,3.18889503,25844.0,25843.0,0.06697697]
[1694060482213,3.5755403,25844.0,25843.0,0.06697697]
[1694060484042,3.5735403,25844.0,25843.0,0.06597697]
[1694060484281,3.5975403,25844.0,25840.0,0.28358982]
[1694060484484,0.18559806,25841.0,25840.0,0.28358982]
[1694060484894,0.13918627,25841.0,25840.0,0.28259189]
[1694060485104,0.13918627,25841.0,25840.0,1.05658489]
[1694060486490,2.49319491,25841.0,25840.0,0.020099]
[1694060486913,2.52419491,25841.0,25840.0,0.020099]
[1694060487469,1.75023191,25841.0,25840.0,0.020099]
[1694060487667,1.75023191,25841.0,25839.0,0.19247369]
[1694060487898,1.08558804,25840.0,25839.0,0.19247369]
[1694060488581,0.85366879,25840.0,25839.0,0.19247369]
[1694060489106,0.69268067,25840.0,25839.0,0.19247369]
[1694060489302,0.13913257,25840.0,25839.0,1.74051969]
[1694060489600,0.14713257,25840.0,25839.0,1.74051969]
[1694060489763,0.53977784,25840.0,25839.0,0.19247369]
[1694060490181,0.53977784,25840.0,25839.0,0.96649669]
[1694060491573,0.0001103,25839.0,25836.0,0.020099]
[1694060491738,0.30596915,25837.0,25836.0,0.020099]
[1694060491940,0.85511442,25837.0,25836.0,0.020099]
[1694060492174,0.85511442,25837.0,25836.0,0.08979838]
[1694060492385,1.22175314,25837.0,25836.0,0.08979838]
[1694060492586,1.1983218,25837.0,25836.0,0.15380773]
[1694060492991,1.2003218,25837.0,25836.0,0.15380773]
[1694060493195,1.2003218,25837.0,25836.0,0.08310835]
[1694060493196,1.03765111,25837.0,25836.0,0.08310835]
[1694060493402,2.67017213,25837.0,25836.0,0.08410835]
[1694060493609,3.46556339,25837.0,25836.0,0.08410835]
[1694060493806,3.54144339,25837.0,25836.0,0.021099]
[1694060494011,3.92646866,25837.0,25836.0,0.021099]
[1694060494260,3.95064866,25837.0,25836.0,0.021099]
[1694060494460,3.95058866,25837.0,25836.0,0.021099]
[1694060494656,3.95112866,25837.0,25836.0,0.021099]
[1694060494987,3.87220866,25837.0,25836.0,0.020099]
[1694060495196,3.89620866,25837.0,25836.0,0.020099]
[1694060495606,4.07975871,25837.0,25836.0,0.020099]
[1694060495814,4.10375871,25837.0,25836.0,0.020099]
[1694060496014,4.12775872,25837.0,25836.0,0.020099]
[1694060496657,4.12775872,25837.0,25836.0,0.02002235]
[1694060497680,4.3129164,25837.0,25836.0,0.02002235]
[1694060498386,4.3129164,25837.0,25836.0,0.08129896]
[1694060498622,4.08136634,25837.0,25836.0,0.08129896]
[1694060498824,4.08136634,25837.0,25836.0,0.02002235]
[1694060499030,4.08136634,25837.0,25836.0,0.08129896]
[1694060499416,4.08136634,25837.0,25836.0,0.02002235]
[1694060499609,4.05519271,25837.0,25836.0,0.02002235]
[1694060500030,3.66854744,25837.0,25836.0,0.02002235]
[1694060500256,3.36038976,25837.0,25836.0,0.02002235]
[1694060500453,0.43464527,25837.0,25836.0,0.26311442]
[1694060500869,0.43464527,25837.0,25836.0,0.32451796]
[1694060501697,0.38664527,25837.0,25836.0,0.32451796]
[1694060501903,0.41064527,25837.0,25836.0,0.32451796]
[1694060502127,1.20872827,25837.0,25836.0,0.32451796]
[1694060502543,0.41064527,25837.0,25836.0,0.32451796]
[1694060502747,0.43464527,25837.0,25836.0,0.32451796]
[1694060503819,1.20872827,25837.0,25836.0,0.32451796]
[1694060504635,1.42563176,25837.0,25836.0,0.32451796]
[1694060505120,2.97379776,25837.0,25836.0,0.08142589]
[1694060505593,2.19971476,25837.0,25836.0,0.08142589]
[1694060505822,2.07535752,25837.0,25836.0,0.08142589]
[1694060506752,1.98281127,25837.0,25836.0,0.08142589]
[1694060506976,1.98281127,25837.0,25836.0,0.08219463]
[1694060507405,2.19585752,25837.0,25836.0,0.08219463]
[1694060507866,2.07535752,25837.0,25836.0,0.08219463]
[1694060508109,2.42790202,25837.0,25836.0,0.08219463]
[1694060508350,2.33535577,25837.0,25836.0,0.08219463]
[1694060508587,2.42790202,25837.0,25836.0,0.08219463]
[1694060512006,3.20198502,25837.0,25836.0,0.08219463]
[1694060512286,3.32248502,25837.0,25836.0,0.08219463]
[1694060512535,2.54840202,25837.0,25836.0,0.08219463]
[1694060513266,0.55514527,25837.0,25836.0,0.15876702]
[1694060514994,0.55514527,25837.0,25836.0,0.08219463]
[1694060515211,3.13293601,25837.0,25836.0,0.08219463]
[1694060515639,3.04038976,25837.0,25836.0,0.02079109]
[1694060515848,3.04038976,25837.0,25836.0,0.08212318]
[1694060516058,3.42703503,25837.0,25836.0,0.08212318]
[1694060516691,3.42703503,25837.0,25836.0,0.02079109]
[1694060517376,3.51962083,25837.0,25836.0,0.02079109]
[1694060517609,3.42703503,25837.0,25836.0,0.02079109]
[1694060517826,3.42703503,25837.0,25836.0,0.02002235]
[1694060518234,3.51962566,25837.0,25836.0,0.02002235]
[1694060518808,3.42703503,25837.0,25836.0,0.02002235]
[1694060520462,2.26630676,25837.0,25836.0,0.02002235]
[1694060520688,2.26630676,25837.0,25836.0,0.08132787]
[1694060520842,2.26630676,25837.0,25836.0,0.08231757]
[1694060521750,2.45146444,25837.0,25836.0,0.08231757]
[1694060523553,2.31264074,25837.0,25836.0,0.08231757]
[1694060524713,2.4775203,25837.0,25836.0,0.08231757]
[1694060525399,2.53373624,25837.0,25836.0,0.08231757]
[1694060525622,2.7652863,25837.0,25836.0,0.08231757]
[1694060525852,2.70907036,25837.0,25836.0,0.08231757]
[1694060526594,2.52391268,25837.0,25836.0,0.08231757]
[1694060527323,3.29799568,25837.0,25836.0,0.08231757]
[1694060529808,3.06644562,25837.0,25836.0,0.08231757]
[1694060535073,3.12714468,25837.0,25836.0,0.08231757]
[1694060535815,3.40583642,25837.0,25836.0,0.08231757]
[1694060537578,3.65923893,25837.0,25836.0,0.08231757]
[1694060538781,3.38054719,25837.0,25836.0,0.08231757]
[1694060540713,3.38054028,25837.0,25836.0,0.08231757]
[1694060542306,3.76718555,25837.0,25836.0,0.08231757]
[1694060542590,3.38054028,25837.0,25836.0,0.08231757]
[1694060543040,0.5525262,25837.0,25836.0,1.87265373]
[1694060543045,0.5525262,25837.0,25836.0,1.09854073]
[1694060543766,0.27368473,25837.0,25836.0,1.09854073]
[1694060555179,0.66033,25837.0,25836.0,0.32442773]
[1694060555395,3.21011996,25837.0,25836.0,0.08231757]
[1694060555593,3.46346153,25837.0,25836.0,0.08231757]
[1694060557258,2.68937853,25837.0,25836.0,0.08231757]
[1694060557668,3.60696153,25837.0,25836.0,0.08231757]
[1694060557873,3.92064459,25837.0,25836.0,0.08231757]
[1694060558156,3.60696153,25837.0,25836.0,0.08231757]
[1694060558577,3.9208017,25837.0,25836.0,0.08231757]
[1694060559086,3.1467187,25837.0,25836.0,0.08231757]
[1694060561116,2.12209474,25837.0,25836.0,0.17849757]
[1694060561319,1.86875317,25837.0,25836.0,0.17849757]
[1694060562519,2.64283617,25837.0,25836.0,0.17849757]
[1694060562707,2.89617774,25837.0,25836.0,0.17849757]
[1694060562920,2.58233757,25837.0,25836.0,0.08231757]
[1694060564440,2.89614262,25837.0,25836.0,0.08231757]
[1694060569979,2.90057525,25837.0,25836.0,0.08231757]
[1694060570594,2.90057525,25837.0,25836.0,0.30271906]
[1694060573051,0.91815977,25837.0,25836.0,0.30271906]
[1694060573267,0.6625365,25837.0,25836.0,0.30271906]
[1694060573892,0.6625365,25837.0,25836.0,0.00094152]
[1694060574101,0.6625365,25837.0,25836.0,0.06046044]
[1694060574308,0.6625365,25837.0,25836.0,0.11186423]
[1694060575156,0.97628598,25837.0,25834.0,2.33177564]
[1694060575370,0.27886589,25835.0,25834.0,1.55761164]
[1694060575561,0.83270333,25835.0,25834.0,1.55761164]
[1694060575687,0.55383744,25835.0,25834.0,1.55761164]
[1694060575902,0.55383744,25835.0,25834.0,1.55831478]
[1694060576119,0.16719217,25835.0,25834.0,2.32319314]
[1694060576539,0.024,25835.0,25834.0,2.32319314]
[1694060576754,0.19119217,25835.0,25834.0,2.32319314]
[1694060577192,0.19119217,25835.0,25834.0,2.3328911]
[1694060577835,0.19119217,25835.0,25834.0,2.32319314]
[1694060578043,0.21519217,25835.0,25834.0,2.33177402]
[1694060578245,0.21519217,25835.0,25834.0,2.32319314]
[1694060578469,0.21519217,25835.0,25834.0,2.33328554]
[1694060581444,0.21519217,25835.0,25834.0,2.39123841]
[1694060597452,0.21519217,25835.0,25834.0,0.06874841]
[1694060597671,0.21519217,25835.0,25834.0,2.39122741]
[1694060598306,0.048,25835.0,25834.0,2.39122741]
[1694060598539,0.21504111,25835.0,25834.0,2.39122741]
[1694060618511,0.49386959,25835.0,25834.0,2.39122741]
[1694060625564,0.49386959,25835.0,25834.0,1.61705441]
[1694060628406,0.66131485,25835.0,25834.0,1.61705441]
[1694060628550,0.66131485,25835.0,25834.0,0.06874841]
[1694060630525,0.66131485,25835.0,25834.0,0.84292141]
[1694060635591,0.66131485,25835.0,25834.0,0.06874841]
[1694060636737,0.66131485,25835.0,25834.0,0.05865601]
[1694060638962,0.66131485,25835.0,25834.0,0.06591184]
[1694060639481,1.04796012,25835.0,25834.0,0.06591184]
[1694060640610,1.04796012,25835.0,25834.0,0.84008484]
[1694060641000,0.88051486,25835.0,25834.0,2.38843084]
[1694060644689,0.88051486,25835.0,25834.0,2.38117501]
[1694060644892,0.88051486,25835.0,25834.0,2.39109318]
[1694060645721,0.49386959,25835.0,25834.0,2.38117501]
[1694060645955,0.49386959,25835.0,25834.0,2.38860311]
[1694060652295,0.49386959,25835.0,25834.0,2.38117501]
[1694060652496,0.49386959,25835.0,25834.0,2.38951101]
[1694060652899,0.49386959,25835.0,25834.0,2.38117501]
[1694060654956,0.49386959,25835.0,25834.0,2.38935321]
[1694060686705,0.49386959,25835.0,25834.0,2.50985321]
[1694060693715,0.21504111,25835.0,25834.0,2.50167501]
[1694060694702,0.21504111,25835.0,25834.0,2.51169144]
[1694060696406,0.49386959,25835.0,25834.0,2.51169144]
[1694060703120,0.44751142,25835.0,25834.0,3.39584801]
[1694060703333,0.40101528,25835.0,25834.0,3.39584801]
[1694060703537,0.23397417,25835.0,25834.0,3.39584801]
[1694060703785,0.40092547,25835.0,25834.0,3.39584801]
[1694060704142,0.37692547,25835.0,25834.0,3.40611105]
[1694060704719,0.35292547,25835.0,25834.0,3.40611105]
[1694060705040,0.18697417,25835.0,25834.0,3.41111105]
[1694060705245,0.61039578,25835.0,25834.0,3.41211105]
[1694060705494,0.60939578,25835.0,25834.0,3.40711105]
[1694060705700,0.58539578,25835.0,25834.0,3.40611105]
[1694060706028,0.42044448,25835.0,25834.0,3.41111105]
[1694060706275,0.58739578,25835.0,25834.0,3.41111105]
[1694060706443,0.35492547,25835.0,25834.0,3.41111105]
[1694060706872,0.35692547,25835.0,25834.0,3.41611105]
[1694060707853,0.35692547,25835.0,25834.0,3.40584801]
[1694060708497,0.18997417,25835.0,25834.0,3.40584801]
[1694060708712,0.32931004,25835.0,25834.0,3.40584801]
[1694060712444,0.09688547,25835.0,25834.0,3.40584801]
[1694060713128,0.09688547,25835.0,25834.0,3.79249328]
[1694060713344,0.09688547,25835.0,25834.0,4.19929328]
[1694060713547,0.004,25835.0,25834.0,4.19929328]
[1694060713792,0.004,25835.0,25834.0,4.25929328]
[1694060714004,0.09288547,25836.0,25835.0,0.5868]
[1694060714214,0.09288547,25836.0,25835.0,3.71637427]
[1694060714631,0.09288547,25836.0,25835.0,3.77399754]
[1694060715225,0.09388547,25836.0,25835.0,3.78099754]
[1694060715358,0.002,25836.0,25835.0,3.78799754]
[1694060716935,0.002,25836.0,25835.0,3.78883099]
[1694060718141,0.001,25836.0,25835.0,3.78183099]
[1694060718339,0.09288547,25837.0,25836.0,0.5868]
[1694060718539,0.09288547,25837.0,25836.0,3.41628427]
[1694060718749,0.09288547,25837.0,25836.0,3.47389919]
[1694060719675,0.09388547,25837.0,25836.0,3.48889919]
[1694060719906,0.09588547,25837.0,25836.0,3.50689919]
[1694060720599,0.003,25837.0,25836.0,3.50689919]
[1694060720992,0.003,25837.0,25836.0,3.50773063]